bitfinex-derivatives/quotes_BTCF0:USTF0_20250320
["timestamp","ask_amount","ask_price","bid_price","bid_amount"]
[1742497435357,0.21294483,84106.0,84105.0,0.27184007]
[1742497436061,0.21414483,84106.0,84105.0,0.27184007]
[1742497436441,0.21394483,84106.0,84105.0,0.27184007]
[1742497437251,0.31340127,84106.0,84105.0,0.27184007]
[1742497438049,0.12114483,84106.0,84105.0,0.27184007]
[1742497438344,0.00217833,84106.0,84105.0,0.27184007]
[1742497438949,0.12114483,84106.0,84105.0,0.53184007]
[1742497439260,0.12014483,84106.0,84105.0,0.5170679]
[1742497439462,0.12114483,84106.0,84105.0,0.5170679]
[1742497439860,0.21394483,84106.0,84105.0,0.5170679]
[1742497440754,0.09397833,84106.0,84105.0,0.5170679]
[1742497440962,0.16634483,84106.0,84105.0,0.5170679]
[1742497441161,0.16734483,84106.0,84105.0,0.5170679]
[1742497441746,0.04837833,84106.0,84105.0,0.5170679]
[1742497441964,0.16734483,84106.0,84105.0,0.5170679]
[1742497442261,0.04837833,84106.0,84105.0,0.5170679]
[1742497442650,0.16734483,84106.0,84105.0,0.5170679]
[1742497442847,0.00217833,84106.0,84105.0,0.5170679]
[1742497443052,0.00217833,84106.0,84105.0,0.53209137]
[1742497443248,0.00217833,84106.0,84105.0,0.5170679]
[1742497444258,0.00117833,84106.0,84105.0,0.5170679]
[1742497444467,0.00117833,84106.0,84105.0,0.53207768]
[1742497444662,0.3608,84111.0,84110.0,0.1189608]
[1742497444961,0.3608,84111.0,84110.0,0.3489608]
[1742497445165,0.3608,84111.0,84110.0,0.4432608]
[1742497446066,0.3608,84111.0,84110.0,0.45810427]
[1742497446657,0.4797594,84111.0,84110.0,0.06154347]
[1742497446861,0.57821584,84111.0,84110.0,0.01484347]
[1742497447061,0.67691584,84111.0,84110.0,0.01484347]
[1742497447676,0.6290594,84111.0,84110.0,0.13380427]
[1742497447859,0.5784594,84111.0,84110.0,0.1189608]
[1742497448261,0.67691584,84111.0,84110.0,0.1189608]
[1742497448464,0.67691584,84111.0,84110.0,0.1682608]
[1742497448965,0.67891584,84111.0,84110.0,0.1189608]
[1742497449462,0.67891584,84111.0,84109.0,0.1189608]
[1742497449463,0.0594805,84110.0,84085.0,0.4202977]
[1742497449661,0.4797707,84103.0,84102.0,0.11914673]
[1742497449863,0.57822714,84103.0,84102.0,0.11914673]
[1742497450064,0.72852714,84103.0,84102.0,0.11914673]
[1742497450956,0.72852714,84103.0,84102.0,0.00017833]
[1742497452156,0.72852714,84103.0,84102.0,0.11915053]
[1742497452758,0.72852714,84103.0,84102.0,0.01495457]
[1742497453863,0.72852714,84103.0,84102.0,0.00017833]
[1742497456558,0.6312707,84103.0,84102.0,0.00017833]
[1742497456763,0.1189863,84092.0,84091.0,0.13030809]
[1742497457065,0.4797863,84092.0,84091.0,0.18240809]
[1742497457372,0.5791863,84092.0,84091.0,0.18240809]
[1742497457563,0.67764274,84092.0,84091.0,0.18240809]
[1742497457764,0.5791863,84092.0,84091.0,0.18240809]
[1742497457961,0.5791863,84092.0,84091.0,0.19717167]
[1742497458656,0.67764274,84092.0,84091.0,0.20017167]
[1742497458858,0.5803863,84092.0,84091.0,0.08118537]
[1742497459064,0.67764274,84092.0,84091.0,0.08118537]
[1742497459262,0.72834274,84092.0,84091.0,0.20017307]
[1742497459473,0.72834274,84092.0,84091.0,0.20317307]
[1742497460262,0.72834274,84092.0,84091.0,0.20017307]
[1742497460666,0.67764274,84092.0,84091.0,0.20017307]
[1742497460866,0.79400274,84092.0,84091.0,0.25077307]
[1742497462679,0.79400274,84092.0,84091.0,0.24777307]
[1742497464269,0.79400274,84092.0,84091.0,0.23645128]
[1742497464474,0.79400274,84092.0,84091.0,0.18585128]
[1742497466381,0.79400274,84092.0,84091.0,0.06686358]
[1742497466575,0.79400274,84092.0,84091.0,0.18585128]
[1742497471981,0.6828463,84092.0,84091.0,0.18585128]
[1742497472277,0.74330274,84092.0,84091.0,0.18585128]
[1742497472782,0.79240274,84092.0,84091.0,0.18585128]
[1742497473287,0.6951463,84092.0,84091.0,0.06686358]
[1742497473579,0.79240274,84092.0,84091.0,0.06686358]
[1742497474582,0.79240274,84092.0,84091.0,0.0521]
[1742497474971,0.70666295,84092.0,84091.0,0.0521]
[1742497475176,0.1785106,84079.0,84078.0,0.0595029]
[1742497475376,0.63776704,84079.0,84078.0,0.2380065]
[1742497476079,0.63776704,84079.0,84078.0,0.25278672]
[1742497476678,0.63776704,84079.0,84078.0,0.2643227]
[1742497477484,0.63776704,84079.0,84078.0,0.2673227]
[1742497477692,0.63776704,84079.0,84078.0,0.2703227]
[1742497477985,0.63776704,84079.0,84078.0,0.2793779]
[1742497478178,0.63776704,84079.0,84078.0,0.2743779]
[1742497478485,0.63776704,84079.0,84078.0,0.2753779]
[1742497482987,0.5393106,84079.0,84078.0,0.2753779]
[1742497483378,0.5393106,84079.0,84078.0,0.27543554]
[1742497483772,0.4203031,84079.0,84078.0,0.29089851]
[1742497483979,0.1784843,84090.0,84089.0,0.1784822]
[1742497484581,0.2305843,84090.0,84089.0,0.19332006]
[1742497484788,0.1784843,84090.0,84089.0,0.19332006]
[1742497485282,0.004,84090.0,84089.0,0.19332006]
[1742497485485,0.004,84090.0,84089.0,0.20890547]
[1742497486279,0.004,84090.0,84089.0,0.57090547]
[1742497486481,0.0594891,84098.0,84097.0,0.1784652]
[1742497487190,0.0594891,84098.0,84097.0,0.19330306]
[1742497487682,0.0604891,84098.0,84097.0,0.19330306]
[1742497487878,0.0614891,84098.0,84097.0,0.19330306]
[1742497488086,0.1804669,84098.0,84097.0,0.20484625]
[1742497488889,0.2304669,84098.0,84097.0,0.20484625]
[1742497489095,0.2314669,84098.0,84097.0,0.20484625]
[1742497489395,0.2314669,84098.0,84097.0,0.22061863]
[1742497490489,0.11636,84103.0,84097.0,0.22061863]
[1742497490490,0.409,84113.0,84107.0,0.0594825]
[1742497490696,0.409,84113.0,84112.0,0.118958]
[1742497490991,0.3608,84116.0,84115.0,0.1189538]
[1742497491186,0.4797524,84116.0,84115.0,0.1189538]
[1742497491384,0.3608,84116.0,84115.0,0.2212538]
[1742497491584,0.4797524,84116.0,84115.0,0.2212538]
[1742497491785,0.4797524,84116.0,84115.0,0.26067432]
[1742497491986,0.5832524,84116.0,84115.0,0.26067432]
[1742497492188,0.5882524,84116.0,84115.0,0.26067432]
[1742497493388,0.5882524,84116.0,84115.0,0.23609166]
[1742497493593,0.5882524,84116.0,84115.0,0.24748297]
[1742497493993,0.5902524,84116.0,84115.0,0.24748297]
[1742497494395,0.5902524,84116.0,84115.0,0.11713786]
[1742497494590,0.1189637,84108.0,84107.0,0.00017833]
[1742497494991,0.2211637,84108.0,84107.0,0.00017833]
[1742497495194,0.2211637,84108.0,84107.0,0.05317833]
[1742497495599,0.2211637,84108.0,84107.0,0.17214343]
[1742497495997,0.2211637,84108.0,84107.0,0.22134343]
[1742497496295,0.2211637,84108.0,84107.0,0.2326836]
[1742497496894,0.2271637,84108.0,84107.0,0.2326836]
[1742497497698,0.5879637,84108.0,84107.0,0.00017833]
[1742497497890,0.1189792,84097.0,84095.0,0.1008]
[1742497498096,0.6334806,84096.0,84095.0,0.0507]
[1742497498402,0.5816806,84096.0,84095.0,0.1696821]
[1742497498902,0.5816806,84096.0,84095.0,0.23381662]
[1742497499499,0.5828806,84096.0,84095.0,0.23381662]
[1742497499700,0.5816806,84096.0,84095.0,0.23381662]
[1742497500304,0.11632,84099.0,84098.0,0.1189778]
[1742497500791,0.1784613,84102.0,84099.0,0.1189764]
[1742497501105,0.1027,84103.0,84102.0,0.1189722]
[1742497501302,0.2216707,84103.0,84102.0,0.1189722]
[1742497501505,0.2216707,84103.0,84102.0,0.2239722]
[1742497502103,0.32012714,84103.0,84102.0,0.2239722]
[1742497502299,0.2216707,84103.0,84102.0,0.2239722]
[1742497502498,0.2236707,84103.0,84102.0,0.2239722]
[1742497504002,0.2256707,84103.0,84102.0,0.2239722]
[1742497504198,0.004,84103.0,84102.0,0.2239722]
[1742497504503,0.004,84103.0,84102.0,0.5847722]
[1742497504904,0.004,84103.0,84102.0,0.2239722]
[1742497505701,0.00136,84123.0,84112.0,0.0594789]
[1742497506005,0.0488,84119.0,84118.0,0.1189495]
[1742497506312,0.0594734,84120.0,84119.0,0.1784207]
[1742497506511,0.0505,84120.0,84119.0,0.1784207]
[1742497506713,0.14684853,84140.0,84131.0,0.0594655]
[1742497506714,0.059465,84132.0,84131.0,0.0594655]
[1742497506901,0.059465,84132.0,84131.0,0.07094237]
[1742497507209,0.175785,84132.0,84131.0,0.07094237]
[1742497508004,0.2947177,84132.0,84131.0,0.07094237]
[1742497508406,0.17432,84132.0,84112.0,0.1189519]
[1742497508600,0.17432,84132.0,84111.0,0.42045803]
[1742497508601,0.118958,84112.0,84111.0,0.36097833]
[1742497508805,0.118958,84112.0,84111.0,0.47993773]
[1742497509006,0.118958,84112.0,84111.0,0.37611876]
[1742497509200,0.118958,84112.0,84111.0,0.13427816]
[1742497509201,0.170958,84112.0,84111.0,0.13427816]
[1742497509514,0.052,84112.0,84111.0,0.13427816]
[1742497509716,0.170958,84112.0,84111.0,0.18707816]
[1742497510014,0.170958,84112.0,84111.0,0.29187816]
[1742497510715,0.174958,84112.0,84111.0,0.30066199]
[1742497510907,0.175958,84112.0,84111.0,0.30066199]
[1742497512409,0.057,84112.0,84111.0,0.30066199]
[1742497512614,0.005,84112.0,84111.0,0.57066199]
[1742497513010,0.005,84112.0,84111.0,0.59514171]
[1742497513208,0.005,84112.0,84111.0,0.61108568]
[1742497513609,0.00017833,84120.0,84119.0,0.1189481]
[1742497514015,0.00017833,84120.0,84119.0,0.2180481]
[1742497514312,0.00017833,84120.0,84119.0,0.23318853]
[1742497514516,0.00017833,84120.0,84119.0,0.24900396]
[1742497514812,0.23540503,84120.0,84119.0,0.01514043]
[1742497515021,0.1189524,84116.0,84115.0,0.2379058]
[1742497515408,0.1691524,84116.0,84115.0,0.1189529]
[1742497515608,0.1691524,84116.0,84115.0,0.13405983]
[1742497517511,0.1691524,84116.0,84115.0,0.18645983]
[1742497517714,0.1691524,84116.0,84115.0,0.23505983]
[1742497519418,0.26760884,84116.0,84115.0,0.23505983]
[1742497519617,0.1691524,84116.0,84115.0,0.23505983]
[1742497522823,0.1704524,84116.0,84115.0,0.06750693]
[1742497523020,0.1703524,84116.0,84115.0,0.01510693]
[1742497523213,0.26760884,84116.0,84115.0,0.01510693]
[1742497523412,0.1691524,84116.0,84115.0,0.13406073]
[1742497523712,0.00017833,84120.0,84119.0,0.1189481]
[1742497524016,0.00017833,84120.0,84119.0,0.1691481]
[1742497524219,0.00017833,84120.0,84119.0,0.2726481]
[1742497524425,0.00017833,84120.0,84119.0,0.28775503]
[1742497525010,0.00217833,84120.0,84119.0,0.28775503]
[1742497525213,0.00217833,84120.0,84119.0,0.30308876]
[1742497525726,0.0537,84132.0,84119.0,0.30308876]
[1742497525727,0.4797213,84141.0,84140.0,0.1189184]
[1742497525932,0.69445774,84141.0,84140.0,0.1189184]
[1742497526118,0.6497013,84141.0,84140.0,0.1189184]
[1742497526310,0.5334213,84141.0,84140.0,0.1189184]
[1742497526711,0.5334213,84141.0,84140.0,0.01510693]
[1742497527016,0.5334213,84141.0,84132.0,0.00017833]
[1742497527017,0.1189283,84133.0,84132.0,0.00017833]
[1742497527216,0.57818474,84133.0,84132.0,0.00017833]
[1742497527418,0.5842283,84133.0,84132.0,0.00017833]
[1742497527721,0.68268474,84133.0,84132.0,0.00017833]
[1742497527914,0.68268474,84133.0,84132.0,0.11910803]
[1742497528709,0.68268474,84133.0,84132.0,0.00017833]
[1742497529223,0.1189707,84103.0,84102.0,0.2135533]
[1742497529415,0.1189707,84103.0,84102.0,0.28675104]
[1742497529915,0.1189707,84103.0,84102.0,0.30172387]
[1742497530119,0.1189707,84103.0,84102.0,0.25202387]
[1742497530419,0.1189707,84103.0,84102.0,0.37099607]
[1742497530823,0.1189707,84103.0,84102.0,0.47169607]
[1742497531023,0.1699707,84103.0,84102.0,0.47169607]
[1742497531521,0.1699707,84103.0,84102.0,0.33775104]
[1742497531730,0.26842714,84103.0,84102.0,0.45672324]
[1742497532029,0.118966,84107.0,84106.0,0.1189651]
[1742497532228,0.1202437,84108.0,84107.0,0.1189637]
[1742497532420,0.1189637,84108.0,84107.0,0.1189637]
[1742497533313,0.1189622,84110.0,84109.0,0.1784419]
[1742497533927,0.2198622,84110.0,84109.0,0.1784419]
[1742497534633,0.2198622,84110.0,84109.0,0.19319466]
[1742497535022,0.2198622,84110.0,84109.0,0.1784419]
[1742497535425,0.00017833,84111.0,84110.0,0.1189608]
[1742497535624,0.11913773,84111.0,84110.0,0.1189608]
[1742497536726,0.21693773,84111.0,84110.0,0.1189608]
[1742497537033,0.00017833,84111.0,84110.0,0.1189608]
[1742497538126,0.11913773,84111.0,84110.0,0.1189608]
[1742497539330,0.12033773,84111.0,84110.0,0.1189608]
[1742497539633,0.25243773,84111.0,84110.0,0.1189608]
[1742497539827,0.0594811,84109.0,84103.0,0.059485]
[1742497540035,0.1189693,84104.0,84103.0,0.1784547]
[1742497540330,0.1784724,84096.0,84095.0,0.13310578]
[1742497540534,0.1784724,84096.0,84095.0,0.1189811]
[1742497541222,0.2768724,84096.0,84095.0,0.1189811]
[1742497541933,0.1578903,84096.0,84095.0,0.1199811]
[1742497542732,0.1578903,84096.0,84095.0,0.14276791]
[1742497542932,0.0984,84096.0,84095.0,0.14276791]
[1742497543134,0.1189771,84099.0,84098.0,0.1189764]
[1742497543634,0.0984,84103.0,84098.0,0.1189764]
[1742497543635,0.1189714,84103.0,84102.0,0.1189707]
[1742497544638,0.1189694,84104.0,84103.0,0.1189693]
[1742497545036,0.1189694,84104.0,84103.0,0.2279546]
[1742497545535,0.1784514,84106.0,84105.0,0.1189679]
[1742497545930,0.1784514,84106.0,84105.0,0.1684679]
[1742497546133,0.2273514,84106.0,84105.0,0.1684679]
[1742497547928,0.2273514,84106.0,84105.0,0.2221679]
[1742497550232,0.1083835,84106.0,84105.0,0.2221679]
[1742497550634,0.0489,84106.0,84105.0,0.2221679]
[1742497550932,0.1757612,84109.0,84108.0,0.1189637]
[1742497551133,0.11628,84109.0,84108.0,0.1189637]
[1742497551334,0.11628,84109.0,84108.0,0.2260637]
[1742497551635,0.22288,84109.0,84108.0,0.2260637]
[1742497551838,0.00017833,84111.0,84110.0,0.1189608]
[1742497552139,0.11913773,84111.0,84110.0,0.2260608]
[1742497552536,0.17203773,84111.0,84110.0,0.2260608]
[1742497553235,0.22573773,84111.0,84110.0,0.2260608]
[1742497558331,0.17283773,84111.0,84110.0,0.2260608]
[1742497558731,0.22563773,84111.0,84110.0,0.2260608]
[1742497559132,0.05387833,84111.0,84110.0,0.24101927]
[1742497559338,0.00017833,84111.0,84110.0,0.24101927]
[1742497560343,0.3608,84136.0,84110.0,0.24101927]
[1742497560344,0.3608,84136.0,84110.0,0.12205847]
[1742497560545,0.0536,84131.0,84130.0,0.1189326]
[1742497560746,0.0536,84131.0,84130.0,0.2186326]
[1742497561840,0.1680255,84135.0,84134.0,0.1189269]
[1742497562041,0.2216255,84135.0,84134.0,0.1189269]
[1742497562243,0.1027,84135.0,84134.0,0.23436968]
[1742497562552,0.1757408,84138.0,84137.0,0.1189227]
[1742497562553,0.21698,84138.0,84137.0,0.1189227]
[1742497562746,0.1007,84138.0,84137.0,0.1189227]
[1742497562944,0.00017833,84139.0,84138.0,0.1189212]
[1742497563142,0.00017833,84139.0,84138.0,0.1687212]
[1742497563452,0.00017833,84139.0,84138.0,0.23498559]
[1742497563647,0.00017833,84139.0,84138.0,0.28578559]
[1742497564051,0.11909813,84139.0,84138.0,0.28578559]
[1742497565049,0.11909813,84139.0,84138.0,0.07529086]
[1742497565347,0.47989813,84139.0,84138.0,0.12794767]
[1742497565541,0.47989813,84139.0,84134.0,0.01414278]
[1742497565542,0.1189227,84137.0,84136.0,0.1690235]
[1742497565737,0.1189227,84137.0,84131.0,0.0594649]
[1742497565738,0.58065833,84139.0,84123.0,0.1189421]
[1742497565949,0.1189396,84125.0,84124.0,0.169041]
[1742497566337,0.2223396,84125.0,84124.0,0.169041]
[1742497566539,0.1189425,84123.0,84120.0,0.0594727]
[1742497566739,0.1189425,84123.0,84119.0,0.3325008]
[1742497566939,0.2352225,84123.0,84119.0,0.2135533]
[1742497567150,0.3386225,84123.0,84119.0,0.2135533]
[1742497567450,0.1189594,84111.0,84105.0,0.1189667]
[1742497567651,0.5960394,84111.0,84106.0,0.1189661]
[1742497567951,0.5960394,84111.0,84103.0,0.1189705]
[1742497568147,0.1189608,84110.0,84109.0,0.1189613]
[1742497568457,0.2353208,84110.0,84109.0,0.1189613]
[1742497568654,0.3396208,84110.0,84109.0,0.1189613]
[1742497568951,0.3396208,84110.0,84109.0,0.2194613]
[1742497572944,0.3720208,84110.0,84109.0,0.2194613]
[1742497573148,0.3396208,84110.0,84109.0,0.2194613]
[1742497573945,0.3396208,84110.0,84109.0,0.2341927]
[1742497574249,0.36208,84111.0,84109.0,0.2341927]
[1742497574449,0.00017833,84118.0,84115.0,0.0594769]
[1742497574646,0.00017833,84118.0,84117.0,0.1189509]
[1742497574845,0.00017833,84118.0,84116.0,0.2196519]
[1742497575045,0.1189509,84117.0,84116.0,0.1704524]
[1742497575257,0.31850734,84117.0,84116.0,0.1704524]
[1742497575441,0.2200509,84117.0,84116.0,0.1851838]
[1742497575645,0.2200509,84117.0,84116.0,0.2343838]
[1742497576952,0.31850734,84117.0,84116.0,0.2343838]
[1742497577140,0.2200509,84117.0,84116.0,0.2343838]
[1742497577341,0.2524509,84117.0,84116.0,0.2343838]
[1742497577548,0.2200509,84117.0,84116.0,0.2343838]
[1742497577748,0.31850734,84117.0,84116.0,0.2343838]
[1742497578045,0.31850734,84117.0,84116.0,0.1704524]
[1742497579558,0.31850734,84117.0,84116.0,0.2209524]
[1742497581351,0.31850734,84117.0,84116.0,0.102]
[1742497581660,0.2200509,84117.0,84116.0,0.2209524]
[1742497582156,0.00017833,84118.0,84117.0,0.1189509]
[1742497582349,0.00017833,84118.0,84117.0,0.5602509]
[1742497582554,0.11912783,84118.0,84117.0,0.57511548]
[1742497583060,0.11912783,84118.0,84117.0,0.59042035]
[1742497583363,0.11912783,84118.0,84117.0,0.57511548]
[1742497583659,0.11912783,84118.0,84117.0,0.59041307]
[1742497584459,0.11912783,84118.0,84117.0,0.30041307]
[1742497584650,0.11912783,84118.0,84117.0,0.28511548]
[1742497585346,0.31668427,84118.0,84117.0,0.28511548]
[1742497586057,0.67748427,84118.0,84117.0,0.28511548]
[1742497588752,0.57902783,84118.0,84117.0,0.28511548]
[1742497588955,0.36097833,84118.0,84117.0,0.28511548]
[1742497589153,0.00017833,84118.0,84117.0,0.28511548]
[1742497589550,0.11912783,84118.0,84117.0,0.28511548]
[1742497590454,0.00017833,84118.0,84117.0,0.28511548]
[1742497590650,0.00017833,84118.0,84117.0,0.56511548]
[1742497590850,0.00017833,84118.0,84117.0,0.68171548]
[1742497591452,0.00017833,84118.0,84117.0,0.69705004]
[1742497591955,0.3608,84129.0,84128.0,0.1189354]
[1742497592356,0.3608,84129.0,84128.0,0.29089998]
[1742497592561,0.479734,84129.0,84128.0,0.29089998]
[1742497593155,0.479734,84129.0,84128.0,0.30473421]
[1742497593564,0.578434,84129.0,84128.0,0.30473421]
[1742497594063,0.529734,84129.0,84128.0,0.30473421]
[1742497594263,0.118934,84129.0,84128.0,0.30473421]
[1742497595356,0.217634,84129.0,84128.0,0.30473421]
[1742497595959,0.118934,84129.0,84128.0,0.30473421]
[1742497598065,0.224634,84129.0,84128.0,0.30473421]
[1742497598363,0.32309044,84129.0,84128.0,0.02869881]
[1742497598657,0.224634,84129.0,84128.0,0.02869881]
[1742497598862,0.32309044,84129.0,84128.0,0.02869881]
[1742497599459,0.32309044,84129.0,84128.0,0.19763421]
[1742497599759,0.32309044,84129.0,84128.0,0.02869881]
[1742497599964,0.257034,84129.0,84128.0,0.01486458]
[1742497600261,0.32309044,84129.0,84128.0,0.01486458]
[1742497602162,0.43953044,84129.0,84128.0,0.01486458]
[1742497603667,0.373474,84129.0,84128.0,0.01486458]
[1742497603864,0.43953044,84129.0,84128.0,0.01486458]
[1742497604171,0.1189453,84121.0,84120.0,0.00017833]
[1742497604366,0.57820174,84121.0,84120.0,0.00017833]
[1742497604559,0.68070174,84121.0,84120.0,0.01423538]
[1742497605666,0.5822453,84121.0,84120.0,0.13318208]
[1742497605963,0.68070174,84121.0,84120.0,0.13318208]
[1742497606468,0.68070174,84121.0,84120.0,0.01423538]
[1742497608570,0.178447,84108.0,84107.0,0.1189649]
[1742497608966,0.178447,84108.0,84107.0,0.1700649]
[1742497609572,0.27690344,84108.0,84107.0,0.06512897]
[1742497609771,0.1189707,84103.0,84102.0,0.539256]
[1742497610174,0.1674707,84103.0,84102.0,0.539256]
[1742497610673,0.0485,84103.0,84102.0,0.539256]
[1742497610972,0.1189697,84104.0,84103.0,0.1189693]
[1742497611173,0.1189697,84104.0,84103.0,0.1686693]
[1742497611472,0.1189697,84104.0,84103.0,0.2206693]
[1742497613776,0.2217697,84104.0,84103.0,0.2206693]
[1742497620882,0.118968,84105.0,84104.0,0.1189693]
[1742497621180,0.118968,84105.0,84104.0,0.2198693]
[1742497621583,0.217568,84105.0,84104.0,0.2198693]
[1742497621881,0.167968,84105.0,84104.0,0.2198693]
[1742497622278,0.217568,84105.0,84104.0,0.2198693]
[1742497622481,0.1189621,84114.0,84104.0,0.1009]
[1742497622675,0.2770424,84114.0,84113.0,0.1189538]
[1742497623377,0.3365228,84114.0,84113.0,0.1189538]
[1742497623983,0.3365228,84114.0,84113.0,0.2257538]
[1742497624384,0.3385228,84114.0,84113.0,0.2257538]
[1742497624585,0.3415228,84114.0,84113.0,0.2257538]
[1742497628086,0.3415228,84114.0,84113.0,0.1068]
[1742497628391,0.3415228,84114.0,84113.0,0.2257566]
[1742497629786,0.005,84114.0,84113.0,0.2257566]
[1742497629978,0.118946,84121.0,84118.0,0.0594742]
[1742497630179,0.2814082,84127.0,84126.0,0.1189382]
[1742497630382,0.2814082,84127.0,84126.0,0.2224382]
[1742497631386,0.2834082,84127.0,84126.0,0.236245]
[1742497633092,0.2814082,84127.0,84126.0,0.236245]
[1742497634383,0.37986464,84127.0,84126.0,0.1173068]
[1742497634691,0.3138082,84127.0,84126.0,0.0138068]
[1742497634889,0.1784173,84123.0,84122.0,0.0594716]
[1742497635191,0.1784173,84123.0,84122.0,0.1070716]
[1742497635492,0.2794173,84123.0,84122.0,0.1579716]
[1742497637080,0.2794173,84123.0,84122.0,0.17511678]
[1742497639791,0.160472,84123.0,84122.0,0.17511678]
[1742497639992,0.1189367,84129.0,84128.0,0.118934]
[1742497640182,0.1693367,84129.0,84128.0,0.118934]
[1742497641392,0.2211367,84129.0,84128.0,0.118934]
[1742497645385,0.2535367,84129.0,84128.0,0.118934]
[1742497646194,0.2211367,84129.0,84128.0,0.118934]
[1742497647397,0.31959314,84129.0,84128.0,0.118934]
[1742497648299,0.1189425,84123.0,84122.0,0.01714518]
[1742497648498,0.1784194,84121.0,84120.0,0.1189458]
[1742497649193,0.1189481,84119.0,84118.0,0.00017833]
[1742497649389,0.4809481,84119.0,84118.0,0.00017833]
[1742497649697,0.1189806,84096.0,84095.0,0.29352647]
[1742497649899,0.21743704,84096.0,84095.0,0.28476398]
[1742497650100,0.31463704,84096.0,84095.0,0.28476398]
[1742497650302,0.2161806,84096.0,84095.0,0.28476398]
[1742497652886,0.2171806,84096.0,84095.0,0.28476398]
[1742497653587,0.1189877,84091.0,84090.0,0.1189891]
[1742497653791,0.2352677,84091.0,84090.0,0.1189891]
[1742497654200,0.1189891,84090.0,84089.0,0.0476]
[1742497654403,0.5803891,84090.0,84089.0,0.0476]
[1742497654595,0.5803891,84090.0,84089.0,0.1665905]
[1742497654796,0.5803891,84090.0,84089.0,0.2167905]
[1742497655398,0.67884554,84090.0,84089.0,0.2167905]
[1742497655597,0.1189905,84089.0,84088.0,0.01730904]
[1742497655797,0.118992,84088.0,84087.0,0.00017833]
[1742497656001,0.21744844,84088.0,84087.0,0.00017833]
[1742497656202,0.31804844,84088.0,84087.0,0.16937173]
[1742497656707,0.31804844,84088.0,84087.0,0.00017833]
[1742497656903,0.31804844,84088.0,84062.0,0.36144]
[1742497656904,0.1190181,84070.0,84069.0,0.2380373]
[1742497657107,0.1190161,84071.0,84070.0,0.119016]
[1742497657406,0.1190143,84073.0,84072.0,0.2975316]
[1742497657704,0.1190143,84073.0,84072.0,0.30631856]
[1742497657905,0.178517,84075.0,84074.0,0.1190118]
[1742497658698,0.178517,84075.0,84074.0,0.2192118]
[1742497660106,0.178517,84075.0,84074.0,0.2202118]
[1742497661196,0.178517,84075.0,84074.0,0.1012]
[1742497661503,0.539317,84075.0,84074.0,0.0518]
[1742497661702,0.539317,84075.0,84074.0,0.1031]
[1742497661703,0.216517,84075.0,84074.0,0.1031]
[1742497661902,0.266417,84075.0,84074.0,0.2221118]
[1742497662298,0.1190087,84077.0,84075.0,0.1785149]
[1742497662606,0.29500283,84081.0,84080.0,0.1190033]
[1742497663504,0.29500283,84081.0,84080.0,0.1658033]
[1742497664502,0.29500283,84081.0,84080.0,0.2163033]
[1742497664703,0.29500283,84081.0,84080.0,0.0973]
[1742497665105,0.29500283,84081.0,84080.0,0.0505]
[1742497665106,0.32740283,84081.0,84080.0,0.0505]
[1742497665313,0.1190075,84077.0,84076.0,0.1695075]
[1742497665502,0.1508075,84077.0,84076.0,0.1695075]
[1742497665810,0.2148075,84077.0,84076.0,0.2204075]
[1742497666004,0.31326394,84077.0,84076.0,0.2204075]
[1742497667106,0.31326394,84077.0,84076.0,0.1014]
[1742497668299,0.1190203,84068.0,84067.0,0.01724102]
[1742497668499,0.21748374,84064.0,84063.0,0.1190269]
[1742497668704,0.1785403,84064.0,84063.0,0.18761651]
[1742497669110,0.1785403,84064.0,84063.0,0.23641651]
[1742497669306,0.059512,84066.0,84065.0,0.1190245]
[1742497669710,0.059512,84066.0,84065.0,0.2190245]
[1742497669914,0.5379501,84068.0,84067.0,0.1190217]
[1742497670211,0.11919304,84072.0,84071.0,0.119016]
[1742497670813,0.11919304,84072.0,84071.0,0.219016]
[1742497671506,0.00017844,84072.0,84071.0,0.219016]
[1742497672214,0.11919304,84072.0,84071.0,0.219016]
[1742497672409,0.00017844,84072.0,84071.0,0.219016]
[1742497673207,0.11919304,84072.0,84071.0,0.219016]
[1742497674712,0.00132,84079.0,84071.0,0.1]
[1742497674912,0.178506,84081.0,84080.0,0.1785014]
[1742497675216,0.178506,84081.0,84080.0,0.2071009]
[1742497675604,0.178506,84081.0,84080.0,0.0978]
[1742497675808,0.670906,84081.0,84080.0,0.0978]
[1742497676009,0.73756244,84081.0,84080.0,0.0978]
[1742497676209,0.0595031,84078.0,84075.0,0.1688097]
[1742497676416,0.2783112,84077.0,84076.0,0.1689089]
[1742497676607,0.2783112,84077.0,84076.0,0.2168089]
[1742497677010,0.2783112,84077.0,84076.0,0.0978]
[1742497677215,0.37676764,84077.0,84076.0,0.0978]
[1742497677609,0.3101112,84077.0,84076.0,0.0978]
[1742497677909,0.37676764,84077.0,84076.0,0.0978]
[1742497678313,0.1190132,84073.0,84072.0,0.00017844]
[1742497678512,0.21746964,84073.0,84072.0,0.00017844]
[1742497678708,0.36446964,84073.0,84072.0,0.00017844]
[1742497678913,0.2978132,84073.0,84072.0,0.00017844]
[1742497679219,0.36446964,84073.0,84072.0,0.00017844]
[1742497679607,0.2978132,84073.0,84072.0,0.00017844]
[1742497680307,0.36446964,84073.0,84072.0,0.00017844]
[1742497680811,0.2978132,84073.0,84072.0,0.00017844]
[1742497681012,0.36546964,84073.0,84072.0,0.00017844]
[1742497681912,0.3018132,84073.0,84072.0,0.00017844]
[1742497682217,0.36846964,84073.0,84072.0,0.00017844]
[1742497682916,0.3018132,84073.0,84072.0,0.00017844]
[1742497683214,0.1190288,84062.0,84061.0,0.01750666]
[1742497683414,0.1190415,84053.0,84052.0,0.0511]
[1742497683625,0.2354815,84053.0,84052.0,0.0511]
[1742497683825,0.43403794,84053.0,84052.0,0.0511]
[1742497684015,0.43403794,84053.0,84052.0,0.0988]
[1742497684211,0.3673815,84053.0,84052.0,0.0988]
[1742497684517,0.43403794,84053.0,84052.0,0.0988]
[1742497684908,0.3673815,84053.0,84052.0,0.0988]
[1742497685313,0.43403794,84053.0,84052.0,0.1028]
[1742497685809,0.43403794,84053.0,84052.0,0.1018]
[1742497687417,0.43503794,84053.0,84052.0,0.0998]
[1742497687615,0.43603794,84053.0,84052.0,0.0988]
[1742497688504,0.3375815,84053.0,84052.0,0.0988]
[1742497688708,0.3756815,84053.0,84052.0,0.0988]
[1742497688909,0.43603794,84053.0,84052.0,0.0988]
[1742497689114,0.3755815,84053.0,84052.0,0.0988]
[1742497689519,0.1697415,84053.0,84052.0,0.2178429]
[1742497689824,0.1210415,84053.0,84052.0,0.2178429]
[1742497690607,0.2163415,84053.0,84052.0,0.0988]
[1742497690813,0.31479794,84053.0,84052.0,0.0988]
[1742497691611,0.2481415,84053.0,84052.0,0.0988]
[1742497691811,0.31479794,84053.0,84052.0,0.0988]
[1742497692222,0.2163415,84053.0,84052.0,0.0988]
[1742497692623,0.31479794,84053.0,84052.0,0.0988]
[1742497694420,0.2163415,84053.0,84052.0,0.0988]
[1742497694620,0.31479794,84053.0,84052.0,0.0988]